Workbook

Sheet PartABalance Sheet(PY)
A2: Company Name:
A3: PEND OREILLE TELEPHONE COMPANY
B4: Balance | C4: Part 64 | D4: Adj. Balance | G4: Balance | H4: Part 64 | I4: Adj. Balance
A5: ASSETS | B5: End of Year | C5: Adj to NonReg | D5: End of Year | F5: LIABILITIES AND STOCKHOLDERS' EQUITY | G5: End of Year | H5: Adj to NonReg | I5: End of Year
B6: 2012 (A) | C6: 2012 (B) | D6: 2012 | G6: 2012 (A) | H6: 2012 (B) | I6: 2012
A7: CURRENT ASSETS | F7: CURRENT LIABILITIES
A8: 1. Cash and Equivalents | B8: 153935 | D8: =SUM(B8:C8) -> 153935 | F8: 25. Accounts Payable | G8: 473593 | I8: =SUM(G8:H8) -> 473593
A9: 2. Cash-RUS Construction Fund | B9: 305225 | D9: =SUM(B9:C9) -> 305225 | F9: 26. Notes Payable | G9: 0 | I9: =SUM(G9:H9) -> 0
A10: 3. Affiliates: | F10: 27. Advance Billings and Payments | G10: 82547 | I10: 82547
A11: a. Telecom, Accounts Receivable | B11: 0 | D11: =SUM(B11:C11) -> 0 | F11: 28. Customer Deposits | G11: 4050 | H11: 0 | I11: 4050
A12: b. Other Accounts Receivable | B12: 230955 | D12: =SUM(B12:C12) -> 230955 | F12: 29. Current Mat. L/T Debt | G12: 0 | I12: 0
A13: c. Notes Receivable | B13: 77188 | D13: 77188 | F13: 30. Current Mat. L/T Debt Rur. Dev. | G13: 0 | I13: 0
A14: 4. Non-Affiliates: | F14: 31. Current Mat. - Capital Leases | G14: 0 | I14: 0
A15: a. Telecom, Accounts Receivable | B15: 120966 | D15: =SUM(B15:C15) -> 120966 | F15: 32. Income Taxes Accrued | G15: 0 | I15: 0
A16: b. Other Accounts Receivable | B16: 164770 | D16: =SUM(B16:C16) -> 164770 | F16: 33. Other Taxes Accrued | G16: 0 | I16: 0
A17: c. Notes Receivable | B17: 0 | D17: 0 | F17: 34. Other Current Liabilities | G17: 43443 | I17: 43443
A18: 5. Interest and Dividends Receivable | B18: 0 | D18: 0 | F18: 35. Total Current Liabilities (25 thru 34) | G18: =SUM(G8:G17) -> 603633 | H18: =H11 -> 0 | I18: =SUM(I8:I17) -> 603633
A19: 6. Material-Regulated | B19: 221708 | C19: -419 | D19: 221289 | F19: LONG-TERM DEBT
A20: 7. Material-Nonregulated | B20: 8608 | D20: 8608 | F20: 36. Funded Debt-RUS Notes | G20: 1390360 | I20: =SUM(G20:H20) -> 1390360
A21: 8. Prepayments | B21: 0 | D21: 0 | F21: 37. Funded Debt-RTB Notes | G21: 0 | I21: =SUM(G21:H21) -> 0
A22: 9. Other Current Assets | B22: 22674 | D22: 22674 | F22: 38. Funded Debt-FFB Notes | G22: 0 | I22: 0
A23: 10. Total Current Assets (1 Thru 9) | B23: =B8+B9+B11+B12+B13+B15+B16+B17+B18+B19+B20+B21+B22 -> 1306029 | C23: =C19 -> -419 | D23: =D8+D9+D11+D12+D13+D15+D16+D17+D18+D19+D20+D21+D22 -> 1305610 | F23: 39. Funded Debt-Other | G23: 0 | I23: 0
F24: 40. Funded Debt-Rural Develop. Loan | G24: 0 | I24: 0
A25: NONCURRENT ASSETS | F25: 41. Premium (Discount) on L/T Debt | G25: 0 | I25: 0
A26: 11. Investment in Affiliated Companies | F26: 42. Reacquired Debt | G26: 0 | I26: 0
A27: a. Rural Development | B27: 0 | D27: =SUM(B27:C27) -> 0 | F27: 43. Obligations Under Capital Lease | G27: 0 | I27: 0
A28: b. Nonrural Development | B28: 0 | D28: =SUM(B28:C28) -> 0 | F28: 44. Adv. From Affiliated Companies | G28: 389587 | I28: 389587
A29: 12. Other Investments | F29: 45. Other Long-Term Debt | G29: 0 | I29: 0
A30: a. Rural Development | B30: 0 | D30: =SUM(B30:C30) -> 0 | F30: 46. Total Long-Term Debt (36 thru 45) | G30: =SUM(G20:G29) -> 1779947 | I30: =SUM(I20:I29) -> 1779947
A31: b. Nonrural Development | B31: 365509 | D31: =SUM(B31:C31) -> 365509 | F31: OTHER LIAB. & DEF. CREDITS
A32: 13. Nonregulated Investments (B1) | B32: 0 | C32: =-C19-C39-C43 -> 8399 | D32: 8399 | F32: 47. Other Long-Term Liabilities | G32: 0 | I32: =SUM(G32:H32) -> 0
A33: 14. Other Noncurrent Assets | B33: 0 | D33: 0 | F33: 48. Other Deferred Credits (C) | G33: 0 | H33: =-H11 -> 0 | I33: =SUM(G33:H33) -> 0
A34: 15. Deferred Charges | B34: 0 | D34: 0 | F34: 49. Other Jurisdictional Differences | G34: 0 | I34: 0
A35: 16. Jurisdictional Differences | B35: 0 | D35: 0 | F35: 50. Total Other Liab. & Def. Credits (47 thru 49) | G35: =SUM(G32:G34) -> 0 | H35: =SUM(H32:H34) -> 0 | I35: 0
A36: 17. Total noncurrent Assets (11 thru 16) | B36: =B27+B28+B30+B31+B32+B33+B34+B35 -> 365509 | C36: =C32 -> 8399 | D36: =D27+D28+D30+D31+D32+D33+D34+D35 -> 373908 | F36: EQUITY
F37: 51. Cap. Stock Outstanding & Subscribed | G37: 2666346 | I37: =SUM(G37:H37) -> 2666346
A38: PLANT, PROPERTY AND EQUIPMENT | F38: 52. Additional Paid-in-Capital | G38: 0 | I38: =SUM(G38:H38) -> 0
A39: 18. Telecom Plant-In-Service | B39: 16197416 | C39: -34120 | D39: =SUM(B39:C39) -> 16163296 | F39: 53. Treasury Stock | G39: 0 | I39: 0
A40: 19. Property Held for Future Use | B40: 1250 | D40: =SUM(B40:C40) -> 1250 | F40: 54. Membership and cap. Certificates | G40: 0 | I40: 0
A41: 20. Plant Under Construction | B41: 379988 | D41: 379988 | F41: 55. Other Capital | G41: 0 | I41: 0
A42: 21. Plant Adj.,Nonop Plant & Goodwill | B42: 0 | D42: 0 | F42: 56. Patronage Capital Credits | G42: 0 | I42: 0
A43: 22. Accumulated Depreciation (CR.) | B43: -13697578 | C43: 26140 | D43: -13671438 | F43: 57. Retained Earnings or Margins (B2) | G43: -497312 | H43: 0 | I43: -497312
A44: 23. Net Plant (18 thru 21 less 22) | B44: =B39+B40+B41+B42+B43 -> 2881076 | C44: =C39+C40+C41+C42+C43 -> -7980 | D44: 2873096 | F44: 58. Total Equity (51 thru 57) | G44: =SUM(G37:G43) -> 2169034 | H44: =SUM(H37:H43) -> 0 | I44: 2169034
A46: TOTAL ASSETS (10+17+23) | B46: =B23+B36+B44 -> 4552614 | C46: =C23+C36+C44 -> 0 | D46: 4552614 | F46: 59. TOTAL LIABILITIES AND EQUITY (35+46+50+58) | G46: =G18+G30+G35+G44 -> 4552614 | H46: =H18+H30+H35+H44 -> 0 | I46: 4552614
A48: (A) - As reported on Form 481 | G48: =G46-B46 -> 0 | I48: =I46-D46 -> 0
A49: (B) - Part 64 adjustments to rate base
A50: from regulated to nonregulated.
A51: (B1) - Part 64 offset to nonreg investment
A52: (B2) - Part 64 offset to retained earnings
A53: (C) - Part 64 Adj. for line 48 is only for
A54: deferred taxes.

Sheet PartABalance Sheet(CY)
A2: Company Name:
A3: PEND OREILLE TELEPHONE COMPANY
B4: Balance | C4: Part 64 | D4: Adj. Balance | G4: Balance | H4: Part 64 | I4: Adj. Balance
A5: ASSETS | B5: End of Year | C5: Adj to NonReg | D5: End of Year | F5: LIABILITIES AND STOCKHOLDERS' EQUITY | G5: End of Year | H5: Adj to NonReg | I5: End of Year
B6: 2013 (A) | C6: 2013 (B) | D6: 2013 | G6: 2013 (A) | H6: 2013 (B) | I6: 2013
A7: CURRENT ASSETS | F7: CURRENT LIABILITIES
A8: 1. Cash and Equivalents | B8: 317801.31 | D8: =SUM(B8:C8) -> 317801.31 | F8: 25. Accounts Payable | G8: 124045.76 | I8: =SUM(G8:H8) -> 124045.76
A9: 2. Cash-RUS Construction Fund | B9: 864.5 | D9: =SUM(B9:C9) -> 864.5 | F9: 26. Notes Payable | G9: 0 | I9: =SUM(G9:H9) -> 0
A10: 3. Affiliates: | F10: 27. Advance Billings and Payments | G10: 0 | I10: 0
A11: a. Telecom, Accounts Receivable | B11: 0 | D11: =SUM(B11:C11) -> 0 | F11: 28. Customer Deposits | G11: 3670 | H11: 0 | I11: 3670
A12: b. Other Accounts Receivable | B12: 184463.79 | D12: =SUM(B12:C12) -> 184463.79 | F12: 29. Current Mat. L/T Debt | G12: 87435 | I12: 87435
A13: c. Notes Receivable | B13: 78745.91 | D13: 78745.91 | F13: 30. Current Mat. L/T Debt Rur. Dev. | G13: 0 | I13: 0
A14: 4. Non-Affiliates: | F14: 31. Current Mat. - Capital Leases | G14: 0 | I14: 0
A15: a. Telecom, Accounts Receivable | B15: 46546.46 | D15: =SUM(B15:C15) -> 46546.46 | F15: 32. Income Taxes Accrued | G15: 0 | I15: 0
A16: b. Other Accounts Receivable | B16: 265892.08 | D16: =SUM(B16:C16) -> 265892.08 | F16: 33. Other Taxes Accrued | G16: 0 | I16: 0
A17: c. Notes Receivable | B17: 0 | D17: 0 | F17: 34. Other Current Liabilities | G17: 54770.98 | I17: 54770.98
A18: 5. Interest and Dividends Receivable | B18: 0 | D18: 0 | F18: 35. Total Current Liabilities (25 thru 34) | G18: =SUM(G8:G17) -> 269921.74 | H18: =H11 -> 0 | I18: =SUM(I8:I17) -> 269921.74
A19: 6. Material-Regulated | B19: 220525.79 | C19: 0 | D19: 220525.79 | F19: LONG-TERM DEBT
A20: 7. Material-Nonregulated | B20: 5862.46 | D20: 5862.46 | F20: 36. Funded Debt-RUS Notes | G20: 1295829.4 | I20: =SUM(G20:H20) -> 1295829.4
A21: 8. Prepayments | B21: 0 | D21: 0 | F21: 37. Funded Debt-RTB Notes | G21: 0 | I21: =SUM(G21:H21) -> 0
A22: 9. Other Current Assets | B22: 67389.59 | D22: 67389.59 | F22: 38. Funded Debt-FFB Notes | G22: 0 | I22: 0
A23: 10. Total Current Assets (1 Thru 9) | B23: =B8+B9+B11+B12+B13+B15+B16+B17+B18+B19+B20+B21+B22 -> 1188091.89 | C23: =C19 -> 0 | D23: =D8+D9+D11+D12+D13+D15+D16+D17+D18+D19+D20+D21+D22 -> 1188091.89 | F23: 39. Funded Debt-Other | G23: 0 | I23: 0
F24: 40. Funded Debt-Rural Develop. Loan | G24: 0 | I24: 0
A25: NONCURRENT ASSETS | F25: 41. Premium (Discount) on L/T Debt | G25: 0 | I25: 0
A26: 11. Investment in Affiliated Companies | F26: 42. Reacquired Debt | G26: 0 | I26: 0
A27: a. Rural Development | B27: 0 | D27: =SUM(B27:C27) -> 0 | F27: 43. Obligations Under Capital Lease | G27: 0 | I27: 0
A28: b. Nonrural Development | B28: 0 | D28: =SUM(B28:C28) -> 0 | F28: 44. Adv. From Affiliated Companies | G28: 0 | I28: 0
A29: 12. Other Investments | F29: 45. Other Long-Term Debt | G29: 0 | I29: 0
A30: a. Rural Development | B30: 0 | D30: =SUM(B30:C30) -> 0 | F30: 46. Total Long-Term Debt (36 thru 45) | G30: =SUM(G20:G29) -> 1295829.4 | I30: =SUM(I20:I29) -> 1295829.4
A31: b. Nonrural Development | B31: 367589.57 | D31: =SUM(B31:C31) -> 367589.57 | F31: OTHER LIAB. & DEF. CREDITS
A32: 13. Nonregulated Investments (B1) | B32: 0 | C32: =-C39-C43 -> 6563 | D32: 6563 | F32: 47. Other Long-Term Liabilities | G32: 0 | I32: =SUM(G32:H32) -> 0
A33: 14. Other Noncurrent Assets | B33: 0 | D33: 0 | F33: 48. Other Deferred Credits (C) | G33: 0 | H33: 0 | I33: =SUM(G33:H33) -> 0
A34: 15. Deferred Charges | B34: 0 | D34: 0 | F34: 49. Other Jurisdictional Differences | G34: 0 | I34: 0
A35: 16. Jurisdictional Differences | B35: 0 | D35: 0 | F35: 50. Total Other Liab. & Def. Credits (47 thru 49) | G35: =SUM(G32:G34) -> 0 | H35: =SUM(H32:H34) -> 0 | I35: 0
A36: 17. Total noncurrent Assets (11 thru 16) | B36: =B27+B28+B30+B31+B32+B33+B34+B35 -> 367589.57 | C36: =C32 -> 6563 | D36: =D27+D28+D30+D31+D32+D33+D34+D35 -> 374152.57 | F36: EQUITY
F37: 51. Cap. Stock Outstanding & Subscribed | G37: 2666346 | I37: =SUM(G37:H37) -> 2666346
A38: PLANT, PROPERTY AND EQUIPMENT | F38: 52. Additional Paid-in-Capital | G38: 0 | I38: =SUM(G38:H38) -> 0
A39: 18. Telecom Plant-In-Service | B39: 16617821.87 | C39: -30841 | D39: =SUM(B39:C39) -> 16586980.87 | F39: 53. Treasury Stock | G39: 0 | I39: 0
A40: 19. Property Held for Future Use | B40: 1250 | D40: =SUM(B40:C40) -> 1250 | F40: 54. Membership and cap. Certificates | G40: 0 | I40: 0
A41: 20. Plant Under Construction | B41: 39970.83 | D41: 39970.83 | F41: 55. Other Capital | G41: 0 | I41: 0
A42: 21. Plant Adj.,Nonop Plant & Goodwill | B42: 0 | D42: 0 | F42: 56. Patronage Capital Credits | G42: 0 | I42: 0
A43: 22. Accumulated Depreciation (CR.) | B43: -13998454.66 | C43: 24278 | D43: -13974176.66 | F43: 57. Retained Earnings or Margins (B2) | G43: -15827.64 | I43: -15827.64
A44: 23. Net Plant (18 thru 21 less 22) | B44: =B39+B40+B41+B42+B43 -> 2660588.04 | C44: =C39+C40+C41+C42+C43 -> -6563 | D44: 2654025.04 | F44: 58. Total Equity (51 thru 57) | G44: =SUM(G37:G43) -> 2650518.36 | H44: =SUM(H37:H43) -> 0 | I44: 2650518.36
A46: TOTAL ASSETS (10+17+23) | B46: =B23+B36+B44 -> 4216269.5 | C46: =C23+C36+C44 -> 0 | D46: 4216269.5 | F46: 59. TOTAL LIABILITIES AND EQUITY (35+46+50+58) | G46: =G18+G30+G35+G44 -> 4216269.5 | H46: =H18+H30+H35+H44 -> 0 | I46: 4216269.5
A48: (A) - As reported on Form 481 | G48: =G46-B46 -> 0 | I48: =I46-D46 -> 0
A49: (B) - Part 64 adjustments to rate base
A50: from regulated to nonregulated.
A51: (B1) - Part 64 offset to nonreg investment
A52: (B2) - Part 64 offset to retained earnings
A53: (C) - Part 64 Adj. for line 48 is only for
A54: deferred taxes.

Sheet PartABalance Sheet (Summary)
A2: Company Name:
A3: PEND OREILLE TELEPHONE COMPANY
B4: Adjusted | C4: Adjusted | F4: Adjusted | G4: Adjusted
A5: ASSETS | B5: Prior Year | C5: Current Year | E5: LIABILITIES AND STOCKHOLDERS' EQUITY | F5: Prior Year | G5: Current Year
B6: Balance 2012 | C6: Balance 2013 | F6: Balance 2012 | G6: Balance 2013
A7: CURRENT ASSETS | E7: CURRENT LIABILITIES
A8: 1. Cash and Equivalents | B8: ='PartABalance Sheet(PY)'!D8 -> 153935 | C8: ='PartABalance Sheet(CY) '!D8 -> 317801.31 | E8: 25. Accounts Payable | F8: ='PartABalance Sheet(PY)'!I8 -> 473593 | G8: ='PartABalance Sheet(CY) '!I8 -> 124045.76
A9: 2. Cash-RUS Construction Fund | B9: ='PartABalance Sheet(PY)'!D9 -> 305225 | C9: ='PartABalance Sheet(CY) '!D9 -> 864.5 | E9: 26. Notes Payable | F9: ='PartABalance Sheet(PY)'!I9 -> 0 | G9: ='PartABalance Sheet(CY) '!I9 -> 0
A10: 3. Affiliates: | E10: 27. Advance Billings and Payments | F10: ='PartABalance Sheet(PY)'!I10 -> 82547 | G10: ='PartABalance Sheet(CY) '!I10 -> 0
A11: a. Telecom, Accounts Receivable | B11: ='PartABalance Sheet(PY)'!D11 -> 0 | C11: ='PartABalance Sheet(CY) '!D11 -> 0 | E11: 28. Customer Deposits | F11: ='PartABalance Sheet(PY)'!I11 -> 4050 | G11: ='PartABalance Sheet(CY) '!I11 -> 3670
A12: b. Other Accounts Receivable | B12: ='PartABalance Sheet(PY)'!D12 -> 230955 | C12: ='PartABalance Sheet(CY) '!D12 -> 184463.79 | E12: 29. Current Mat. L/T Debt | F12: ='PartABalance Sheet(PY)'!I12 -> 0 | G12: ='PartABalance Sheet(CY) '!I12 -> 87435
A13: c. Notes Receivable | B13: ='PartABalance Sheet(PY)'!D13 -> 77188 | C13: ='PartABalance Sheet(CY) '!D13 -> 78745.91 | E13: 30. Current Mat. L/T Debt Rur. Dev. | F13: ='PartABalance Sheet(PY)'!I13 -> 0 | G13: ='PartABalance Sheet(CY) '!I13 -> 0
A14: 4. Non-Affiliates: | E14: 31. Current Mat. - Capital Leases | F14: ='PartABalance Sheet(PY)'!I14 -> 0 | G14: ='PartABalance Sheet(CY) '!I14 -> 0
A15: a. Telecom, Accounts Receivable | B15: ='PartABalance Sheet(PY)'!D15 -> 120966 | C15: ='PartABalance Sheet(CY) '!D15 -> 46546.46 | E15: 32. Income Taxes Accrued | F15: ='PartABalance Sheet(PY)'!I15 -> 0 | G15: ='PartABalance Sheet(CY) '!I15 -> 0
A16: b. Other Accounts Receivable | B16: ='PartABalance Sheet(PY)'!D16 -> 164770 | C16: ='PartABalance Sheet(CY) '!D16 -> 265892.08 | E16: 33. Other Taxes Accrued | F16: ='PartABalance Sheet(PY)'!I16 -> 0 | G16: ='PartABalance Sheet(CY) '!I16 -> 0
A17: c. Notes Receivable | B17: ='PartABalance Sheet(PY)'!D17 -> 0 | C17: ='PartABalance Sheet(CY) '!D17 -> 0 | E17: 34. Other Current Liabilities | F17: ='PartABalance Sheet(PY)'!I17 -> 43443 | G17: ='PartABalance Sheet(CY) '!I17 -> 54770.98
A18: 5. Interest and Dividends Receivable | B18: ='PartABalance Sheet(PY)'!D18 -> 0 | C18: ='PartABalance Sheet(CY) '!D18 -> 0 | E18: 35. Total Current Liabilities (25 - 34) | F18: =SUM(F8:F17) -> 603633 | G18: =SUM(G8:G17) -> 269921.74
A19: 6. Material-Regulated | B19: ='PartABalance Sheet(PY)'!D19 -> 221289 | C19: ='PartABalance Sheet(CY) '!D19 -> 220525.79 | E19: LONG-TERM DEBT
A20: 7. Material-Nonregulated | B20: ='PartABalance Sheet(PY)'!D20 -> 8608 | C20: ='PartABalance Sheet(CY) '!D20 -> 5862.46 | E20: 36. Funded Debt-RUS Notes | F20: ='PartABalance Sheet(PY)'!I20 -> 1390360 | G20: ='PartABalance Sheet(CY) '!I20 -> 1295829.4
A21: 8. Prepayments | B21: ='PartABalance Sheet(PY)'!D21 -> 0 | C21: ='PartABalance Sheet(CY) '!D21 -> 0 | E21: 37. Funded Debt-RTB Notes | F21: ='PartABalance Sheet(PY)'!I21 -> 0 | G21: ='PartABalance Sheet(CY) '!I21 -> 0
A22: 9. Other Current Assets | B22: ='PartABalance Sheet(PY)'!D22 -> 22674 | C22: ='PartABalance Sheet(CY) '!D22 -> 67389.59 | E22: 38. Funded Debt-FFB Notes | F22: ='PartABalance Sheet(PY)'!I22 -> 0 | G22: ='PartABalance Sheet(CY) '!I22 -> 0
A23: 10. Total Current Assets (1 Thru 9) | B23: =B8+B9+B11+B12+B13+B15+B16+B17+B18+B19+B20+B21+B22 -> 1305610 | C23: =C8+C9+C11+C12+C13+C15+C16+C17+C18+C19+C20+C21+C22 -> 1188091.89 | E23: 39. Funded Debt-Other | F23: ='PartABalance Sheet(PY)'!I23 -> 0 | G23: ='PartABalance Sheet(CY) '!I23 -> 0
E24: 40. Funded Debt-Rural Develop. Loan | F24: ='PartABalance Sheet(PY)'!I24 -> 0 | G24: ='PartABalance Sheet(CY) '!I24 -> 0
A25: NONCURRENT ASSETS | E25: 41. Premium (Discount) on L/T Debt | F25: ='PartABalance Sheet(PY)'!I25 -> 0 | G25: ='PartABalance Sheet(CY) '!I25 -> 0
A26: 11. Investment in Affiliated Companies | E26: 42. Reacquired Debt | F26: ='PartABalance Sheet(PY)'!I26 -> 0 | G26: ='PartABalance Sheet(CY) '!I26 -> 0
A27: a. Rural Development | B27: ='PartABalance Sheet(PY)'!D27 -> 0 | C27: ='PartABalance Sheet(CY) '!D27 -> 0 | E27: 43. Obligations Under Capital Lease | F27: ='PartABalance Sheet(PY)'!I27 -> 0 | G27: ='PartABalance Sheet(CY) '!I27 -> 0
A28: b. Nonrural Development | B28: ='PartABalance Sheet(PY)'!D28 -> 0 | C28: ='PartABalance Sheet(CY) '!D28 -> 0 | E28: 44. Adv. From Affiliated Companies | F28: ='PartABalance Sheet(PY)'!I28 -> 389587 | G28: ='PartABalance Sheet(CY) '!I28 -> 0
A29: 12. Other Investments | E29: 45. Other Long-Term Debt | F29: ='PartABalance Sheet(PY)'!I29 -> 0 | G29: ='PartABalance Sheet(CY) '!I29 -> 0
A30: a. Rural Development | B30: ='PartABalance Sheet(PY)'!D30 -> 0 | C30: ='PartABalance Sheet(CY) '!D30 -> 0 | E30: 46. Total Long-Term Debt (36-45) | F30: =SUM(F20:F29) -> 1779947 | G30: =SUM(G20:G29) -> 1295829.4
A31: b. Nonrural Development | B31: ='PartABalance Sheet(PY)'!D31 -> 365509 | C31: ='PartABalance Sheet(CY) '!D31 -> 367589.57 | E31: OTHER LIAB. & DEF. CREDITS
A32: 13. Nonregulated Investments | B32: ='PartABalance Sheet(PY)'!D32 -> 8399 | C32: ='PartABalance Sheet(CY) '!D32 -> 6563 | E32: 47. Other Long-Term Liabilities | F32: ='PartABalance Sheet(PY)'!I32 -> 0 | G32: ='PartABalance Sheet(CY) '!I32 -> 0
A33: 14. Other Noncurrent Assets | B33: ='PartABalance Sheet(PY)'!D33 -> 0 | C33: ='PartABalance Sheet(CY) '!D33 -> 0 | E33: 48. Other Deferred Credits (B) | F33: ='PartABalance Sheet(PY)'!I33 -> 0 | G33: ='PartABalance Sheet(CY) '!I33 -> 0
A34: 15. Deferred Charges | B34: ='PartABalance Sheet(PY)'!D34 -> 0 | C34: ='PartABalance Sheet(CY) '!D34 -> 0 | E34: 49. Other Jurisdictional Differences | F34: ='PartABalance Sheet(PY)'!I34 -> 0 | G34: ='PartABalance Sheet(CY) '!I34 -> 0
A35: 16. Jurisdictional Differences | B35: ='PartABalance Sheet(PY)'!D35 -> 0 | C35: ='PartABalance Sheet(CY) '!D35 -> 0 | E35: 50. Total Other Liab. & Def. Credits (47 thru 49) | F35: =SUM(F32:F34) -> 0 | G35: =SUM(G32:G34) -> 0
A36: 17. Total noncurrent Assets (11 thru 16) | B36: =B27+B28+B30+B31+B32+B33+B34+B35 -> 373908 | C36: =C27+C28+C30+C31+C32+C33+C34+C35 -> 374152.57 | E36: EQUITY
E37: 51. Cap. Stock Outstanding & Subscribed | F37: ='PartABalance Sheet(PY)'!I37 -> 2666346 | G37: ='PartABalance Sheet(CY) '!I37 -> 2666346
A38: PLANT, PROPERTY AND EQUIPMENT | E38: 52. Additional Paid-in-Capital | F38: ='PartABalance Sheet(PY)'!I38 -> 0 | G38: ='PartABalance Sheet(CY) '!I38 -> 0
A39: 18. Telecom Plant-in-Service | B39: ='PartABalance Sheet(PY)'!D39 -> 16163296 | C39: ='PartABalance Sheet(CY) '!D39 -> 16586980.87 | E39: 53. Treasury Stock | F39: ='PartABalance Sheet(PY)'!I39 -> 0 | G39: ='PartABalance Sheet(CY) '!I39 -> 0
A40: 19. Property Held for Future Use | B40: ='PartABalance Sheet(PY)'!D40 -> 1250 | C40: ='PartABalance Sheet(CY) '!D40 -> 1250 | E40: 54. Membership and cap. Certificates | F40: ='PartABalance Sheet(PY)'!I40 -> 0 | G40: ='PartABalance Sheet(CY) '!I40 -> 0
A41: 20. Plant Under Construction | B41: ='PartABalance Sheet(PY)'!D41 -> 379988 | C41: ='PartABalance Sheet(CY) '!D41 -> 39970.83 | E41: 55. Other Capital | F41: ='PartABalance Sheet(PY)'!I41 -> 0 | G41: ='PartABalance Sheet(CY) '!I41 -> 0
A42: 21. Plant Adj.,Nonop Plant & Goodwill | B42: ='PartABalance Sheet(PY)'!D42 -> 0 | C42: ='PartABalance Sheet(CY) '!D42 -> 0 | E42: 56. Patronage Capital Credits | F42: ='PartABalance Sheet(PY)'!I42 -> 0 | G42: ='PartABalance Sheet(CY) '!I42 -> 0
A43: 22. Accumulated Depreciation (CR.) | B43: ='PartABalance Sheet(PY)'!D43 -> -13671438 | C43: ='PartABalance Sheet(CY) '!D43 -> -13974176.66 | E43: 57. Retained Earnings or Margins | F43: ='PartABalance Sheet(PY)'!I43 -> -497312 | G43: ='PartABalance Sheet(CY) '!I43 -> -15827.64
A44: 23. Net Plant (18 thru 21 less 22) | B44: =SUM(B39:B43) -> 2873096 | C44: =SUM(C39:C43) -> 2654025.04 | E44: 58. Total Equity (51 thru 57) | F44: =SUM(F37:F43) -> 2169034 | G44: =SUM(G37:G43) -> 2650518.36
A46: TOTAL ASSETS (10+17+23) | B46: =B23+B36+B44 -> 4552614 | C46: =C23+C36+C44 -> 4216269.5 | E46: 59. TOTAL LIABILITIES AND EQUITY (35+46+50+58) | F46: =F18+F30+F35+F44 -> 4552614 | G46: =G18+G30+G35+G44 -> 4216269.5
A48: Note: | B48: =B46-F46 -> 0 | C48: =C46-G46 -> 0
A49: Adjusted Balances represents balances
A50: after current year Part 64 adjustments
A51: (B) - Provide Deferred Taxes on
A52: separate rate base schedule

Sheet RateBase
A2: Company Name:
A3: PEND OREILLE TELEPHONE COMPANY
C4: Adj. Balance | D4: Adj. Balance | E4: Average
B5: Line | C5: End of Year | D5: End of Year | E5: Adj End of Year
B6: # | C6: 2012 | D6: 2013 | E6: Balance
A7: Average Rate Base:
A8: Total Regulated Adjusted Telecom Plant-In-service | B8: 18 | C8: ='PartABalance Sheet (Summary)'!B39 -> 16163296 | D8: ='PartABalance Sheet (Summary)'!C39 -> 16586980.87 | E8: =(C8+D8)/2 -> 16375138.44
A9: Total Regulated Adjusted Accumulated Depreciation (CR) | B9: 22 | C9: ='PartABalance Sheet (Summary)'!B43 -> -13671438 | D9: ='PartABalance Sheet (Summary)'!C43 -> -13974176.66 | E9: =(C9+D9)/2 -> -13822807.33
A10: Total Regulated Materials & Supplies | B10: 6 | C10: ='PartABalance Sheet (Summary)'!B19 -> 221289 | D10: ='PartABalance Sheet (Summary)'!C19 -> 220525.79 | E10: 220907.395
A11: Deferred Income Taxes (CR) | C11: 0 | D11: 0 | E11: 0
A12: Total Regulated Rate Base | C12: =SUM(C8:C11) -> 2713147 | D12: =SUM(D8:D11) -> 2833330 | E12: 2773238.5
A15: Note:
A16: 1. Normal balance of deferred income taxes and
A17: accumulated depreciation is a credit.
A18: 2. Adjusted balance includes current year Part 64 adjustments

Sheet Statistics
A2: Company Name:
A3: PEND OREILLE TELEPHONE COMPANY
B4: Prior Year | C4: Current Year
A5: Description | B5: End of Yr. | C5: End of Yr | D5: Difference | E5: %
B6: Balance - 2012 | C6: Balance - 2013 | E6: Change
A7: Access Lines:
A8: Residential | B8: 1345 | C8: 1261 | D8: =C8-B8 -> -84 | E8: =D8/B8 -> -0.0624535316
A9: Business | B9: =261+49 -> 310 | C9: =275+78 -> 353 | D9: =C9-B9 -> 43 | E9: =D9/B9 -> 0.1387096774
A10: Total | B10: =SUM(B8:B9) -> 1655 | C10: =SUM(C8:C9) -> 1614 | D10: -41 | E10: -0.0247734139
B14: End of Yr. | C14: End of Year | D14: Difference | E14: %
B15: Balance - 2012 | C15: Balance -2013 | E15: Change
A16: Broadband Connections | B16: 645 | C16: 651 | D16: =C16-B16 -> 6 | E16: =D16/B16 -> 0.009302325581
B20: Prior Yr. | C20: Current Yr. | D20: Difference | E20: %
B21: 2012 | C21: 2013 | E21: Change
A22: Total Annual Amount:
A23: Gross Capital Expenditures | B23: 1059467 | C23: 420406.29 | D23: =C23-B23 -> -639060.71 | E23: =D23/B23 -> -0.6031907648

Sheet PartBIncomeStmt(PY)
A1: FCC Form 481
A2: Part B Statement of Income and Retained Earnings Statement
B4: Company Name:
B5: PEND OREILLE TELEPHONE COMPANY
C6: Prior Year | D6: Part 64 | E6: Prior Year
A7: Line # | B7: Item | C7: 2012 | D7: Adj. to NonReg | E7: Adjusted
C8: (A) | D8: (B) | E8: 2012
A9: 1 | B9: Local Network Services Revenues | C9: 407265 | D9: 0 | E9: =SUM(C9:D9) -> 407265
A10: 2 | B10: Network Access Services Revenues | C10: 1426808 | D10: 0 | E10: =SUM(C10:D10) -> 1426808
A11: 3 | B11: Long Distance Network Services Revenues | C11: 0 | E11: 0
A12: 4 | B12: Carrier Billing and Collection Revenues | C12: 1033 | D12: 0 | E12: 1033
A13: 5 | B13: Miscellaneous Revenues | C13: 22285 | E13: 22285
A14: 6 | B14: Uncollectible Revenues (Normal Balance is debit or in brackets) | C14: -2594 | E14: -2594
A15: 7 | B15: Net Operating Revenues (1 thru 6) | C15: =SUM(C9:C14) -> 1854797 | D15: =SUM(D9:D14) -> 0 | E15: 1854797
A16: 8 | B16: Plant Specific Operations Expense | C16: 544987 | D16: -3675 | E16: =SUM(C16:D16) -> 541312
A17: 9 | B17: Plant Nonspecific Operations Expense (excluding Depreciation & Amort.) | C17: 178981 | D17: 0 | E17: =SUM(C17:D17) -> 178981
A18: 10 | B18: Depreciation Expense | C18: 248983 | D18: -693 | E18: 248290
A19: 11 | B19: Amortization Expense | C19: 34125 | E19: 34125
A20: 12 | B20: Customer Operations Expense | C20: 173112 | D20: -4331 | E20: 168781
A21: 13 | B21: Corporate Operations | C21: 765806 | D21: -6705 | E21: 759101
A22: 13a | B22: Less: Corporate Operations Adjustment (FCC 36.621) report in ( ) | C22: 0 | E22: 0
A23: 13b | B23: Adjusted Corporate Operations Expense (Line 13 minus Line 13a) | C23: =SUM(C21:C22) -> 765806 | D23: =SUM(D21:D22) -> -6705 | E23: 759101
A24: 14 | B24: Total Operations Expenses (8 thru 12 +13b) | C24: =C16+C17+C18+C19+C20+C23 -> 1945994 | D24: =D16+D17+D18+D19+D20+D23 -> -15404 | E24: 1930590
A25: 15 | B25: Operating Income or Margins (7 less 14) | C25: =C15-C24 -> -91197 | D25: =D15-D24 -> 15404 | E25: -75793
A26: 16 | B26: Other Operating Income and Expenses ( ) | C26: 0 | E26: =SUM(C26:D26) -> 0
A27: 17 | B27: State and Local Taxes | C27: 0 | D27: 0 | E27: =SUM(C27:D27) -> 0
A28: 18 | B28: Federal Income Taxes (A1) | C28: 0 | D28: 0 | E28: 0
A29: 19 | B29: Other Taxes | C29: 36489 | D29: -48 | E29: 36441
A30: 20 | B30: Total Operating Taxes (17+18+19) | C30: =SUM(C27:C29) -> 36489 | D30: =SUM(D27:D29) -> -48 | E30: 36441
A31: 21 | B31: Net Operating Income or Margins (15+16-20) | C31: =C25+C26-C30 -> -127686 | D31: =D25+D26-D30 -> 15452 | E31: =E25+E26-E30 -> -112234
A32: 22 | B32: Interest on Funded Debt | C32: 70037 | E32: =SUM(C32:D32) -> 70037
A33: 23 | B33: Interest Expense - Capital Leases | C33: 0 | E33: =SUM(C33:D33) -> 0
A34: 24 | B34: Other Interest Expense | C34: 6271 | E34: 6271
A35: 25 | B35: Allowance for Funds Used During Construction (CR) | C35: -85298 | E35: -85298
A36: 26 | B36: Total Fixed Charges (22+23+24-25) | C36: =SUM(C32:C35) -> -8990 | D36: =SUM(D32:D35) -> 0 | E36: -8990
A37: 27 | B37: Nonoperating Net Income | C37: 9663 | E37: =SUM(C37:D37) -> 9663
A38: 28 | B38: Extraordinary Items | C38: 0 | E38: =SUM(C38:D38) -> 0
A39: 29 | B39: Jurisdictional Differences | C39: 0 | E39: 0
A40: 30 | B40: Nonregulated Net Income (B1) | C40: 95453 | D40: =-1*D31+D36 -> -15452 | E40: 80001
A41: 31 | B41: Total Net Income or Margins (21+27+28+29+30-26) | C41: =C31-C36+C37+C38+C39+C40 -> -13580 | D41: =D31-D36+D37+D38+D39+D40 -> 0 | E41: =E31-E36+E37+E38+E39+E40 -> -13580
A42: 32 | B42: Total Taxes Based on Income | C42: 36489 | E42: =SUM(C42:D42) -> 36489
A43: 33 | B43: Retained Earning or Margins Beginning-of-Year | C43: -483732 | E43: =SUM(C43:D43) -> -483732
A44: 34 | B44: Miscellaneous Credits Year-to-Date | C44: 0 | E44: 0
A45: 35 | B45: Dividends Declared (Common) | C45: 0 | E45: 0
A46: 36 | B46: Dividends Declared (Preferred) | C46: 0 | E46: 0
A47: 37 | B47: Other Debits Year-to-Date | C47: 0 | E47: 0
A48: 38 | B48: Transfers to Patronage Capital | C48: 0 | E48: 0
A49: 39 | B49: Retained Earnings or Margins End-of-Period ((31+33+34)-(35+36+37+38) | C49: =(C41+C43+C44)-(C45+C46+C47+C48) -> -497312 | D49: =(D41+D43+D44)-(D45+D46+D47+D48) -> 0 | E49: -497312
A50: 40 | B50: Patronage Capital Beginning-of-Year | C50: 0 | E50: =SUM(C50:D50) -> 0
A51: 41 | B51: Transfers to Patronage Capital | C51: 0 | E51: =SUM(C51:D51) -> 0
A52: 42 | B52: Patronage Capital Credits Retired | C52: 0 | E52: 0
A53: 43 | B53: Patronage Capital End-of-Year (40+41-42) | C53: =C50+C51-C52 -> 0 | D53: =D50+D51-D52 -> 0 | E53: 0
A54: 44 | B54: Annual Debt Service Payments | C54: =C32+1390360 -> 1460397 | E54: =C54 -> 1460397
A55: 45 | B55: Cash Ratio ((14+20-10-11)/7) | C55: =((C24+C30-C18-C19)/C15) -> 0.9162053853 | D55: =((D24+D30-D18-D19)/D15) ->  | E55: =((E24+E30-E18-E19)/E15) -> 0.9082481803
A56: 46 | B56: Operating Accrual Ratio ((14+20+26)/7) | C56: =((C24+C30+C36)/C15) -> 1.063994065 | D56: =((D24+D30+D36)/D15) ->  | E56: =((E24+E30+E36)/E15) -> 1.055663234
A57: 47 | B57: TIER ((31+26)/26) | C57: =((C41+C36)/C36) -> 2.510567297 | D57: =((D41+D36)/D36) ->  | E57: 2.510567297
A58: 48 | B58: DSCR ((31+26+10+11)/44) | C58: =(C41+C36+C18+C19)/C54 -> 0.1784021742 | D58: =(D41+D36+D18+D19)/D54 ->  | E58: 0.1779276457
A61: Notes:
A62: (A) | B62: As reported on Form 481
A63: (A1) | B63: S Corporations provide effective tax rate on Income Statement
B64: Summary Schedule footnote, Page 8
A65: (B) | B65: Part 64 adjustment from regulated to nonregulated
A66: (B1) | B66: Part 64 offset to nonregulated income (No Impact to retained earnings)

Sheet PartBIncomeStmt(CY)
A1: FCC Form 481
A2: Part B Statement of Income and Retained Earnings Statement
B4: Company Name:
B5: PEND OREILLE TELEPHONE COMPANY
C6: Current Year | D6: Part 64 | E6: Current Year
A7: Line # | B7: Item | C7: 2013 | D7: Adj. to NonReg | E7: Adjusted
C8: (A) | D8: (B) | E8: 2013
A9: 1 | B9: Local Network Services Revenues | C9: 400948.91 | D9: 0 | E9: =SUM(C9:D9) -> 400948.91
A10: 2 | B10: Network Access Services Revenues | C10: 2148409.58 | D10: 0 | E10: =SUM(C10:D10) -> 2148409.58
A11: 3 | B11: Long Distance Network Services Revenues | C11: 0 | E11: 0
A12: 4 | B12: Carrier Billing and Collection Revenues | C12: -5281.7 | D12: 0 | E12: -5281.7
A13: 5 | B13: Miscellaneous Revenues | C13: 21344.65 | E13: 21344.65
A14: 6 | B14: Uncollectible Revenues (Normal Balance is debit or in brackets) | C14: -5840.57 | E14: -5840.57
A15: 7 | B15: Net Operating Revenues (1 thru 6) | C15: =SUM(C9:C14) -> 2559580.87 | D15: =SUM(D9:D14) -> 0 | E15: 2559580.87
A16: 8 | B16: Plant Specific Operations Expense | C16: 623799.51 | D16: -3124 | E16: =SUM(C16:D16) -> 620675.51
A17: 9 | B17: Plant Nonspecific Operations Expense (excluding Depreciation & Amort.) | C17: 172199.87 | D17: 0 | E17: =SUM(C17:D17) -> 172199.87
A18: 10 | B18: Depreciation Expense | C18: 300875.8 | D18: -629 | E18: 300246.8
A19: 11 | B19: Amortization Expense | C19: 0 | E19: 0
A20: 12 | B20: Customer Operations Expense | C20: 167108.68 | D20: -3103 | E20: 164005.68
A21: 13 | B21: Corporate Operations | C21: 783978.35 | D21: -4962 | E21: 779016.35
A22: 13a | B22: Less: Corporate Operations Adjustment (FCC 36.621) report in ( ) | C22: 0 | E22: 0
A23: 13b | B23: Adjusted Corporate Operations Expense (Line 13 minus Line 13a) | C23: =SUM(C21:C22) -> 783978.35 | D23: =SUM(D21:D22) -> -4962 | E23: 779016.35
A24: 14 | B24: Total Operations Expenses (8 thru 12 +13b) | C24: =C16+C17+C18+C19+C20+C23 -> 2047962.21 | D24: =D16+D17+D18+D19+D20+D23 -> -11818 | E24: 2036144.21
A25: 15 | B25: Operating Income or Margins (7 less 14) | C25: =C15-C24 -> 511618.66 | D25: =D15-D24 -> 11818 | E25: 523436.66
A26: 16 | B26: Other Operating Income and Expenses ( ) | C26: 0 | E26: =SUM(C26:D26) -> 0
A27: 17 | B27: State and Local Taxes | C27: 0 | D27: 0 | E27: =SUM(C27:D27) -> 0
A28: 18 | B28: Federal Income Taxes (A1) | C28: 0 | D28: 0 | E28: 0
A29: 19 | B29: Other Taxes | C29: 52374.82 | D29: -40 | E29: 52334.82
A30: 20 | B30: Total Operating Taxes (17+18+19) | C30: =SUM(C27:C29) -> 52374.82 | D30: =SUM(D27:D29) -> -40 | E30: 52334.82
A31: 21 | B31: Net Operating Income or Margins (15+16-20) | C31: =C25+C26-C30 -> 459243.84 | D31: =D25+D26-D30 -> 11858 | E31: =E25+E26-E30 -> 471101.84
A32: 22 | B32: Interest on Funded Debt | C32: 69518 | E32: =SUM(C32:D32) -> 69518
A33: 23 | B33: Interest Expense - Capital Leases | C33: 0 | E33: =SUM(C33:D33) -> 0
A34: 24 | B34: Other Interest Expense | C34: 1421.95 | E34: 1421.95
A35: 25 | B35: Allowance for Funds Used During Construction (CR) | C35: -12053.75 | E35: -12053.75
A36: 26 | B36: Total Fixed Charges (22+23+24-25) | C36: =SUM(C32:C35) -> 58886.2 | D36: =SUM(D32:D35) -> 0 | E36: 58886.2
A37: 27 | B37: Nonoperating Net Income | C37: 32246.49 | E37: =SUM(C37:D37) -> 32246.49
A38: 28 | B38: Extraordinary Items | C38: 0 | E38: =SUM(C38:D38) -> 0
A39: 29 | B39: Jurisdictional Differences | C39: 0 | E39: 0
A40: 30 | B40: Nonregulated Net Income (B1) | C40: 48877.05 | D40: =-1*D31+D36 -> -11858 | E40: 37019.05
A41: 31 | B41: Total Net Income or Margins (21+27+28+29+30-26) | C41: =C31-C36+C37+C38+C39+C40 -> 481481.18 | D41: =D31-D36+D37+D38+D39+D40 -> 0 | E41: 481481.18
A42: 32 | B42: Total Taxes Based on Income | C42: 52374.82 | E42: =SUM(C42:D42) -> 52374.82
A43: 33 | B43: Retained Earning or Margins Beginning-of-Year | C43: -497312 | E43: =SUM(C43:D43) -> -497312
A44: 34 | B44: Miscellaneous Credits Year-to-Date | C44: 0 | E44: 0
A45: 35 | B45: Dividends Declared (Common) | C45: 0 | E45: 0
A46: 36 | B46: Dividends Declared (Preferred) | C46: 0 | E46: 0
A47: 37 | B47: Other Debits Year-to-Date | C47: 0 | E47: 0
A48: 38 | B48: Transfers to Patronage Capital | C48: 0 | E48: 0
A49: 39 | B49: Retained Earnings or Margins End-of-Period ((31+33+34)-(35+36+37+38) | C49: =(C41+C43+C44)-(C45+C46+C47+C48) -> -15830.82 | D49: =(D41+D43+D44)-(D45+D46+D47+D48) -> 0 | E49: -15830.82
A50: 40 | B50: Patronage Capital Beginning-of-Year | E50: =SUM(C50:D50) -> 0
A51: 41 | B51: Transfers to Patronage Capital | E51: =SUM(C51:D51) -> 0
A52: 42 | B52: Patronage Capital Credits Retired | E52: 0
A53: 43 | B53: Patronage Capital End-of-Year (40+41-42) | C53: =C50+C51-C52 -> 0 | D53: =D50+D51-D52 -> 0 | E53: 0
A54: 44 | B54: Annual Debt Service Payments | C54: =C32+1295829 -> 1365347 | E54: =C54 -> 1365347
A55: 45 | B55: Cash Ratio ((14+20-10-11)/7) | C55: =((C24+C30-C18-C19)/C15) -> 0.7030296448 | D55: =((D24+D30-D18-D19)/D15) ->  | E55: =((E24+E30-E18-E19)/E15) -> 0.6986425985
A56: 46 | B56: Operating Accrual Ratio ((14+20+26)/7) | C56: =((C24+C30+C36)/C15) -> 0.8435846881 | D56: =((D24+D30+D36)/D15) ->  | E56: =((E24+E30+E36)/E15) -> 0.8389518984
A57: 47 | B57: TIER ((31+26)/26) | C57: =((C41+C36)/C36) -> 9.17646885 | D57: =((D41+D36)/D36) ->  | E57: 9.17646885
A58: 48 | B58: DSCR ((31+26+10+11)/44) | C58: =(C41+C36+C18+C19)/C54 -> 0.6161387398 | D58: =(D41+D36+D18+D19)/D54 ->  | E58: 0.6156780511
A61: Notes:
A62: (A) | B62: As reported on Form 481
A63: (A1) | B63: S Corporations provide effective tax rate on Income Statement
B64: Summary Schedule footnote, Page 8
A65: (B) | B65: Part 64 adjustment from regulated to nonregulated
A66: (B1) | B66: Part 64 offset to nonregulated income (No Impact to retained earnings)

Sheet PartBIncomeStmtSummary
A1: FCC Form 481
A2: Part B Statement of Income and Retained Earnings Statement
B4: Company Name:
B5: PEND OREILLE TELEPHONE COMPANY
C6: Adjusted | D6: Adjusted
A7: Line # | B7: Item | C7: Prior Year | D7: Current Year
C8: 2012 | D8: 2013
A9: 1 | B9: Local Network Services Revenues | C9: ='PartBIncomeStmt(PY)'!E9 -> 407265 | D9: ='PartBIncomeStmt(CY) '!E9 -> 400948.91
A10: 2 | B10: Network Access Services Revenues | C10: ='PartBIncomeStmt(PY)'!E10 -> 1426808 | D10: ='PartBIncomeStmt(CY) '!E10 -> 2148409.58
A11: 3 | B11: Long Distance Network Services Revenues | C11: ='PartBIncomeStmt(PY)'!E11 -> 0 | D11: ='PartBIncomeStmt(CY) '!E11 -> 0
A12: 4 | B12: Carrier Billing and Collection Revenues | C12: ='PartBIncomeStmt(PY)'!E12 -> 1033 | D12: ='PartBIncomeStmt(CY) '!E12 -> -5281.7
A13: 5 | B13: Miscellaneous Revenues | C13: ='PartBIncomeStmt(PY)'!E13 -> 22285 | D13: ='PartBIncomeStmt(CY) '!E13 -> 21344.65
A14: 6 | B14: Uncollectible Revenues (Normal Balance is debit or in brackets) | C14: ='PartBIncomeStmt(PY)'!E14 -> -2594 | D14: ='PartBIncomeStmt(CY) '!E14 -> -5840.57
A15: 7 | B15: Net Operating Revenues (1 thru 6) | C15: =SUM(C9:C14) -> 1854797 | D15: =SUM(D9:D14) -> 2559580.87
A16: 8 | B16: Plant Specific Operations Expense | C16: ='PartBIncomeStmt(PY)'!E16 -> 541312 | D16: ='PartBIncomeStmt(CY) '!E16 -> 620675.51
A17: 9 | B17: Plant Nonspecific Operations Expense (excluding Depreciation & Amort.) | C17: ='PartBIncomeStmt(PY)'!E17 -> 178981 | D17: ='PartBIncomeStmt(CY) '!E17 -> 172199.87
A18: 10 | B18: Depreciation Expense | C18: ='PartBIncomeStmt(PY)'!E18 -> 248290 | D18: ='PartBIncomeStmt(CY) '!E18 -> 300246.8
A19: 11 | B19: Amortization Expense | C19: ='PartBIncomeStmt(PY)'!E19 -> 34125 | D19: ='PartBIncomeStmt(CY) '!E19 -> 0
A20: 12 | B20: Customer Operations Expense | C20: ='PartBIncomeStmt(PY)'!E20 -> 168781 | D20: ='PartBIncomeStmt(CY) '!E20 -> 164005.68
A21: 13 | B21: Corporate Operations | C21: ='PartBIncomeStmt(PY)'!E21 -> 759101 | D21: ='PartBIncomeStmt(CY) '!E21 -> 779016.35
A22: 13a | B22: Less: Corporate Operations Adjustment (FCC 36.621) report in ( ) | C22: ='PartBIncomeStmt(PY)'!E22 -> 0 | D22: ='PartBIncomeStmt(CY) '!E22 -> 0
A23: 13b | B23: Adjusted Corporate Operations Expense (Line 13 minus Line 13a) | C23: =SUM(C21:C22) -> 759101 | D23: =SUM(D21:D22) -> 779016.35
A24: 14 | B24: Total Operations Expenses (8 thru 12 +13b) | C24: =C16+C17+C18+C19+C20+C23 -> 1930590 | D24: =D16+D17+D18+D19+D20+D23 -> 2036144.21
A25: 15 | B25: Operating Income or Margins (7 less 14) | C25: =C15-C24 -> -75793 | D25: =D15-D24 -> 523436.66
A26: 16 | B26: Other Operating Income and Expenses ( ) | C26: ='PartBIncomeStmt(PY)'!E26 -> 0 | D26: ='PartBIncomeStmt(CY) '!E26 -> 0
A27: 17 | B27: State and Local Taxes | C27: ='PartBIncomeStmt(PY)'!E27 -> 0 | D27: ='PartBIncomeStmt(CY) '!E27 -> 0
A28: 18 | B28: Federal Income Taxes | C28: ='PartBIncomeStmt(PY)'!E28 -> 0 | D28: ='PartBIncomeStmt(CY) '!E28 -> 0
A29: 19 | B29: Other Taxes | C29: ='PartBIncomeStmt(PY)'!E29 -> 36441 | D29: ='PartBIncomeStmt(CY) '!E29 -> 52334.82
A30: 20 | B30: Total Operating Taxes (17+18+19) | C30: =SUM(C27:C29) -> 36441 | D30: =SUM(D27:D29) -> 52334.82
A31: 21 | B31: Net Operating Income or Margins (15+16-20) | C31: =C25+C26-C30 -> -112234 | D31: =D25+D26-D30 -> 471101.84
A32: 22 | B32: Interest on Funded Debt | C32: ='PartBIncomeStmt(PY)'!E32 -> 70037 | D32: ='PartBIncomeStmt(CY) '!E32 -> 69518
A33: 23 | B33: Interest Expense - Capital Leases | C33: ='PartBIncomeStmt(PY)'!E33 -> 0 | D33: ='PartBIncomeStmt(CY) '!E33 -> 0
A34: 24 | B34: Other Interest Expense | C34: ='PartBIncomeStmt(PY)'!E34 -> 6271 | D34: ='PartBIncomeStmt(CY) '!E34 -> 1421.95
A35: 25 | B35: Allowance for Funds Used During Construction | C35: ='PartBIncomeStmt(PY)'!E35 -> -85298 | D35: ='PartBIncomeStmt(CY) '!E35 -> -12053.75
A36: 26 | B36: Total Fixed Charges (22+23+24-25) | C36: =SUM(C32:C35) -> -8990 | D36: =SUM(D32:D35) -> 58886.2
A37: 27 | B37: Nonoperating Net Income | C37: ='PartBIncomeStmt(PY)'!E37 -> 9663 | D37: ='PartBIncomeStmt(CY) '!E37 -> 32246.49
A38: 28 | B38: Extraordinary Items | C38: ='PartBIncomeStmt(PY)'!E38 -> 0 | D38: ='PartBIncomeStmt(CY) '!E38 -> 0
A39: 29 | B39: Jurisdictional Differences | C39: ='PartBIncomeStmt(PY)'!E39 -> 0 | D39: ='PartBIncomeStmt(CY) '!E39 -> 0
A40: 30 | B40: Nonregulated Net Income | C40: ='PartBIncomeStmt(PY)'!E40 -> 80001 | D40: ='PartBIncomeStmt(CY) '!E40 -> 37019.05
A41: 31 | B41: Total Net Income or Margins (21+27+28+29+30-26) | C41: =C31-C36+C37+C38+C39+C40 -> -13580 | D41: =D31-D36+D37+D38+D39+D40 -> 481481.18
A42: 32 | B42: Total Taxes Based on Income | C42: ='PartBIncomeStmt(PY)'!E42 -> 36489 | D42: ='PartBIncomeStmt(CY) '!E42 -> 52374.82
A43: 33 | B43: Retained Earning or Margins Beginning-of-Year | C43: ='PartBIncomeStmt(PY)'!E43 -> -483732 | D43: ='PartBIncomeStmt(CY) '!E43 -> -497312
A44: 34 | B44: Miscellaneous Credits Year-to-Date | D44: ='PartBIncomeStmt(CY) '!E44 -> 0
A45: 35 | B45: Dividends Declared (Common) | C45: ='PartBIncomeStmt(PY)'!E45 -> 0 | D45: ='PartBIncomeStmt(CY) '!E45 -> 0
A46: 36 | B46: Dividends Declared (Preferred) | D46: ='PartBIncomeStmt(CY) '!E46 -> 0
A47: 37 | B47: Other Debits Year-to-Date | C47: ='PartBIncomeStmt(PY)'!E47 -> 0 | D47: ='PartBIncomeStmt(CY) '!E47 -> 0
A48: 38 | B48: Transfers to Patronage Capital | C48: ='PartBIncomeStmt(PY)'!E48 -> 0 | D48: ='PartBIncomeStmt(CY) '!E48 -> 0
A49: 39 | B49: Retained Earnings or Margins End-of-Period ((31+33+34)-(35+36+37+38) | C49: =(C41+C43+C44)-(C45+C46+C47+C48) -> -497312 | D49: =(D41+D43+D44)-(D45+D46+D47+D48) -> -15830.82
A50: 40 | B50: Patronage Capital Beginning-of-Year | C50: ='PartBIncomeStmt(PY)'!E50 -> 0 | D50: ='PartBIncomeStmt(CY) '!E50 -> 0
A51: 41 | B51: Transfers to Patronage Capital | C51: ='PartBIncomeStmt(PY)'!E51 -> 0 | D51: ='PartBIncomeStmt(CY) '!E51 -> 0
A52: 42 | B52: Patronage Capital Credits Retired | C52: ='PartBIncomeStmt(PY)'!E52 -> 0 | D52: ='PartBIncomeStmt(CY) '!E52 -> 0
A53: 43 | B53: Patronage Capital End-of-Year (40+41-42) | C53: =C50+C51-C52 -> 0 | D53: =D50+D51-D52 -> 0
A54: 44 | B54: Annual Debt Service Payments | C54: ='PartBIncomeStmt(PY)'!E54 -> 1460397 | D54: ='PartBIncomeStmt(CY) '!E54 -> 1365347
A55: 45 | B55: Cash Ratio ((14+20-10-11)/7) | C55: =((C24+C30-C18-C19)/C15) -> 0.9082481803 | D55: =((D24+D30-D18-D19)/D15) -> 0.6986425985
A56: 46 | B56: Operating Accrual Ratio ((14+20+26)/7) | C56: =((C24+C30+C36)/C15) -> 1.055663234 | D56: =((D24+D30+D36)/D15) -> 0.8389518984
A57: 47 | B57: TIER ((31+26)/26) | C57: =((C41+C36)/C36) -> 2.510567297 | D57: =((D41+D36)/D36) -> 9.17646885
A58: 48 | B58: DSCR ((31+26+10+11)/44) | C58: =(C41+C36+C18+C19)/C54 -> 0.1779276457 | D58: =(D41+D36+D18+D19)/D54 -> 0.6156780511
B61: Footnote (A1) | C61: 2012 | D61: 2013
B62: S Corporation Effective Tax Rate (2 decimal places): | C62: 0.2153 | D62: 0.2134

Sheet AccessRevDetail
A1: Network Access Services Revenue:
A3: Company Name:
A4: PEND OREILLE TELEPHONE COMPANY
A6: Description | B6: Part 32 | C6: 2012 | D6: 2013
B7: Account
A8: End User Revenue (SLC, ARC, etc.) | B8: 5081 | C8: =202072+5130 -> 207202 | D8: 207356
A9: Switched Access (excluding USF): | B9: 5082
A10: Intrastate | B10: 5084 | C10: 166682.84 | D10: 139966.71
A11: Interstate | B11: 5082 | C11: =559993+101961-C15 -> 142288 | D11: =1339760+54187-D15 -> 331599
A12: Special Access: | B12: 5083
A13: Intrastate | B13: 5084.2 | C13: 98134.03 | D13: 98911.53
A14: Interstate | B14: 5083 | C14: 292835.45 | D14: 308228.21
A15: Federal USF (ICLS/Caf/HCL/SN) | B15: 5082.1 | C15: 519666 | D15: 1062348
A16: Total (must equal line 2 of Income Stmt.) | C16: =C8+C10+C11+C13+C14+C15 -> 1426808.32 | D16: =D8+D10+D11+D13+D14+D15 -> 2148409.45
A17: Line 2 of Income Stmt. | C17: ='PartBIncomeStmt(PY)'!E10 -> 1426808 | D17: ='PartBIncomeStmt(CY) '!E10 -> 2148409.58
A18: Difference | C18: =C16-C17 -> 0.3199999998 | D18: =D16-D17 -> -0.1299999999

Sheet Sheet1
